Cogmind - Beta 13 *** ADVENTURER MODE // 2024.04.09 @ 18:17:33 Player: Nahyn Result: Destroyed by G-47 Trooper with Particle Gun Performance ------------- Evolutions (3) 1500 Regions Visited (5) 1000 Robots Destroyed (67) 335 Value Destroyed (1558) 1558 Prototype IDs (0) 0 Alien Tech Used (0) 0 Bonus (186) 186 TOTAL SCORE: 4579 Bonus ------- High Alert Combat Kills 94 Follower Combat Kills 172 Friendly Fire -80 Cogmind --------- Core Integrity 0/700 Matter 43/300 Energy 100/100 System Corruption 6% Temperature Cool (9) Movement Walking (130) Location -7/Factory Parts ------- > --- POWER (3) -------- (None) > --- PROPULSION (2) --- Improved Titanium Leg Improved Titanium Leg > --- UTILITY (5) ------ Structural Scanner Signal Interpreter Targeting Computer > --- WEAPON (3) ------- (None) > --- INVENTORY (5) ---- Core Analyzer Kinecellerator Propulsion Shielding Grenade Launcher Rocket Launcher Peak State ------------ > --- POWER ------------ Ion Engine Light Ion Engine Light Ion Engine > --- PROPULSION ------- Armored Treads Airjet > --- UTILITY ---------- Improved Heat Sink Large Storage Unit Structural Scanner Signal Interpreter Targeting Computer > --- WEAPON ----------- Gatling Laser Light Assault Rifle Improved Datajack > --- INVENTORY -------- Ion Engine Ion Engine Nuclear Core Light Treads Core Analyzer Kinecellerator Propulsion Shielding Flak Cannon Flak Cannon Grenade Launcher Grenade Launcher Rocket Launcher Mining Claw [Rating: 26] Favorites ----------- Power Light Nuclear Core Engine Ion Engine Power Core Light Nuclear Core Propulsion Aluminum Leg Treads Light Treads Leg Aluminum Leg Hover Unit Airjet Utility Large Storage Unit Device Structural Scanner Storage Large Storage Unit Processor Signal Interpreter Protection Propulsion Shielding Weapon Assault Rifle Energy Gun Gatling Laser Ballistic Gun Assault Rifle Ballistic Cannon Flak Cannon Launcher Grenade Launcher Slashing Weapon Mining Claw Special Melee Weapon Improved Datajack Build | -11 -10 -10 -9 -8 -7 ------- Run | Yrd Mat Min Mat Mat Fac Slots Evolved 6 | . . . 2 2 2 Power 2 | . . . 1 . 1 Propulsion . | . . . . . . Utility 3 | . . . 1 2 . Weapon 1 | . . . . . 1 Parts Attached 51 | 6 5 3 8 8 21 Power 13 | 1 1 . 2 4 5 Engine 10 | 1 . . 1 4 4 Core 3 | . 1 . 1 . 1 Reactor . | . . . . . . Propulsion 11 | 2 . . 3 . 6 Treads 3 | . . . 2 . 1 Leg 6 | 2 . . 1 . 3 Wheel . | . . . . . . Hover 2 | . . . . . 2 Flight . | . . . . . . Utility 8 | . 3 1 1 3 . Device 2 | . . 1 . 1 . Storage 2 | . 2 . . . . Processor 3 | . . . 1 2 . Hackware . | . . . . . . Protection 1 | . 1 . . . . Artifact . | . . . . . . Weapon 19 | 3 1 2 2 1 10 Energy Gun 2 | 1 . . . . 1 Energy Cannon . | . . . . . . Ballistic Gun 3 | 2 . . . . 1 Ballistic Cannon 4 | . . . . . 4 Launcher 8 | . 1 1 2 . 4 Special Weapon . | . . . . . . Impact Weapon . | . . . . . . Slashing Weapon 1 | . . 1 . . . Piercing Weapon . | . . . . . . Special Melee Weapon 1 | . . . . 1 . Unidentified Prototypes . | . . . . . . Parts Lost 26 | . . . 5 6 15 Power 9 | . . . 1 2 6 Propulsion 6 | . . . 3 1 2 Utility 2 | . . . . 1 1 Weapon 9 | . . . 1 2 6 Highest Loss Streak 7 | . . . 2 3 7 To Critical Strikes . | . . . . . . Average Slot Usage (%) 86 | . 80 100 87 86 77 Engine 7 | . 3 . 9 11 14 Core 7 | . 11 14 8 5 . Treads 3 | . . . . 15 4 Leg 15 | . 28 28 19 . 1 Device 10 | . . 13 11 12 11 Storage 9 | . 5 14 11 9 5 Processor 7 | . . . 7 19 15 Ballistic Gun 8 | . 21 14 5 . 4 Ballistic Cannon 1 | . . . . . 3 Launcher 9 | . 7 13 15 11 1 Special Melee Weapon 1 | . . . . 3 4 Naked Turns . | . . . . . . Heaviest Build 43 | 6 31 31 39 41 43 Greatest Support 40 | 20 20 20 40 40 40 Greatest Overweight (x) 12 | . 1 1 12 1 6 Average Overweight (x) . | . . 1 1 . 1 Largest Inventory Capacity 15 | 5 15 15 15 15 15 Average Capacity 13 | 5 9 15 15 15 12 Most Carried 14 | 3 8 8 12 13 14 Average Carried 8 | . 5 7 9 10 9 Final Capacity 15 | 5 15 15 15 15 5 Final Carried 12 | 2 6 8 10 12 5 Class Distribution -------------------- 70% | Mutant 29% | Scavenger-Mutant Dominant Class ---------------- Mutant | -10/Materials Mutant | -10/Mines Mutant | -9/Materials Scavenger-Mutant | -8/Materials Mutant | -7/Factory Resources | -11 -10 -10 -9 -8 -7 ----------- Run | Yrd Mat Min Mat Mat Fac Matter Collected 1080 | 266 58 154 347 101 154 Remotely . | . . . . . . Salvage Created 1270 | 36 101 151 503 204 275 Parts 115 | 3 9 18 50 13 22 Haulers Intercepted 2 | . . . 2 . . Recyclers Shooed . | . . . . . . Parts Field Recycled . | . . . . . . Retrieved Matter . | . . . . . . Parts Self-Destructed . | . . . . . . Prevented . | . . . . . . Kills | -11 -10 -10 -9 -8 -7 ------- Run | Yrd Mat Min Mat Mat Fac Combat Hostiles Destroyed 45 | 1 4 11 14 5 10 Guns 10 | 1 4 4 1 . . Cannons 2 | . . . . . 2 AOE 33 | . . 7 13 5 8 Classes Destroyed 10 | 1 1 . 7 1 . Worker 5 | . . . 2 2 1 Builder 7 | . . . 5 1 1 Hauler 2 | . . . 2 . . Recycler 2 | . . . . 1 1 Mechanic 1 | . . . 1 . . Watcher 5 | . . . 3 . 2 Swarmer 22 | . 3 9 3 . 7 Grunt 16 | 1 1 2 8 2 2 Brawler 3 | . . . 2 1 . Sentry 4 | . . . 1 2 1 Best Kill Streak 11 | 1 3 3 11 4 7 Combat Bots Only 6 | 1 3 3 5 3 6 Max Kills in Single Turn 5 | 1 2 2 5 2 4 Gunslinging 1 | . 1 . . . . Exploded 3 | . . 2 3 1 2 Melee . | . . . . . . Uniques/NPCs Destroyed . | . . . . . . Combat | -11 -10 -10 -9 -8 -7 -------- Run | Yrd Mat Min Mat Mat Fac Hostile Shots Fired 423 | 5 29 41 46 31 271 Missed 134 | 3 6 15 12 12 86 Damage Taken 3400 | 16 190 163 400 446 2185 Core 890 | . 50 48 39 45 708 Absorbed by Shields . | . . . . . . Ignored by Resistances 946 | 5 62 55 118 74 632 Core Remaining (%) 85 | 100 . 60 90 91 . Volleys Fired 104 | 4 13 23 30 10 24 Largest 2 | 2 2 1 2 2 2 Hottest 100 | 40 40 30 66 66 100 Shots Fired 144 | 8 25 23 35 13 40 Gun 78 | 8 25 18 9 . 18 Cannon 12 | . . . . . 12 Launcher 54 | . . 5 26 13 10 Special . | . . . . . . Kinetic 84 | 8 25 18 9 . 24 Thermal 6 | . . . . . 6 Explosive 54 | . . 5 26 13 10 Electromagnetic . | . . . . . . Robot Hit Streak 14 | 4 9 3 2 5 14 Robot Miss Streak 4 | 1 1 2 3 1 4 Penetration Max . | . . . . . . Secondary Targets 1 | . 1 . . . . Max Gunslinging Chain 1 | . 1 . . . . Shots Hit Robots 81 | 5 19 13 4 9 31 Core Hits 114 | 3 7 16 39 15 34 Critical Kills . | . . . . . . Critical Parts Destroyed . | . . . . . . Critical Strikes . | . . . . . . Melee Attacks . | . . . . . . Impact . | . . . . . . Slashing . | . . . . . . Piercing . | . . . . . . Sneak Attacks . | . . . . . . Combat Hostiles . | . . . . . . Follow-up Attacks . | . . . . . . Damage Inflicted 4735 | 49 194 452 1968 657 1415 Guns 712 | 49 194 155 52 . 262 Cannons 192 | . . . . . 192 Explosions 3798 | . . 297 1916 657 928 Melee . | . . . . . . Ramming 33 | . . . . . 33 Kinetic 725 | 49 194 155 52 . 275 Thermal 179 | . . . . . 179 Explosive 3798 | . . 297 1916 657 928 Electromagnetic . | . . . . . . Impact . | . . . . . . Slashing . | . . . . . . Piercing . | . . . . . . Highest Corruption 6 | . . . . 6 6 Average Corruption 4 | . . . . 6 3 Corruption Purged . | . . . . . . Corruption Blocked . | . . . . . . Effects 7 | . . . . 3 4 Message Errors 2 | . . . . 1 1 Matter Fused 2 | . . . . 1 1 Heat Flow Errors 1 | . . . . . 1 Data Loss (minor) 1 | . . . . . 1 Alerts 1 | . . . . 1 . Overload Shots . | . . . . . . Overflow Damage 169 | . . 6 102 22 39 Projectiles . | . . . . . . Explosions 169 | . . 6 102 22 39 Melee . | . . . . . . Knockbacks 7 | . . . . . 7 Impact . | . . . . . . Kinetic 7 | . . . . . 7 Secondary . | . . . . . . Self-Inflicted Damage 256 | . . . 67 36 153 Shots 8 | . . . 3 1 4 Rammed 7 | . . . . . 7 Targets Rammed 18 | . . . . . 18 Kicked 11 | . . . . . 11 Crushed . | . . . . . . Highest Temperature 112 | . 22 6 27 72 112 Average Temperature 19 | . 12 3 12 38 26 Received Heat Transfer 798 | 12 117 18 204 117 330 Siege Activations . | . . . . . . Robots Corrupted . | . . . . . . Combat Hostiles . | . . . . . . Parts Fried . | . . . . . . Impact Corruptions . | . . . . . . Robots Melted . | . . . . . . Combat Hostiles . | . . . . . . Parts Melted 3 | . . . 2 . 1 Heat Transferred 400 | . . . . . 400 Parts Sabotaged . | . . . . . . Parts Stolen . | . . . . . . Parts Stripped . | . . . . . . Power Chain Reactions . | . . . . . . Alert | -11 -10 -10 -9 -8 -7 ------- Run | Yrd Mat Min Mat Mat Fac Peak Influence 652 | 20 120 215 652 486 248 Initial 234 | . 11 9 . 234 111 Average 166 | 2 74 99 364 342 87 Maximum Alert Level 2 | . . 1 2 2 1 Low Security (%) 71 | 100 100 90 26 . 95 Level 1 14 | . . 9 17 64 4 Level 2 14 | . . . 56 35 . Level 3 . | . . . . . . Level 4 . | . . . . . . Level 5 . | . . . . . . High Security . | . . . . . . Max Security . | . . . . . . Squads Dispatched 7 | . . . 2 . 5 Investigation 1 | . . . 1 . . Extermination 2 | . . . . . 2 Reinforcement . | . . . . . . Assault 1 | . . . 1 . . Garrison 3 | . . . . . 3 Intercept . | . . . . . . Searches Triggered . | . . . . . . Construction Impeded . | . . . . . . Haulers Reinforced . | . . . . . . Active Scanning Responses . | . . . . . . Cargo Convoy Interrupts 1 | . . . . . 1 Stealth | -11 -10 -10 -9 -8 -7 --------- Run | Yrd Mat Min Mat Mat Fac Distress Signals 1 | . . . 1 . . Communications Jammed . | . . . . . . Distress Signals . | . . . . . . Times Spotted 78 | 1 8 10 32 5 22 Peak Tracking Total 7 | 1 5 3 7 3 6 Tactical Retreats . | . . . . . . Traps | -11 -10 -10 -9 -8 -7 ------- Run | Yrd Mat Min Mat Mat Fac Traps Triggered 1 | . . . . . 1 Indirectly . | . . . . . . Trap Hack Attempts . | . . . . . . Triggered . | . . . . . . Disarmed . | . . . . . . Reprogrammed . | . . . . . . Reused . | . . . . . . Traps Extracted . | . . . . . . Installed . | . . . . . . Triggered 1 | . . . . . 1 Machines | -11 -10 -10 -9 -8 -7 ---------- Run | Yrd Mat Min Mat Mat Fac Machines Disabled 12 | . . . 6 3 3 Max in Single Turn 2 | . . . 1 1 2 Machines Repaired . | . . . . . . Machines Dismantled . | . . . . . . Machines Sabotaged . | . . . . . . Overloaded Fab Kills . | . . . . . . Hacking | -11 -10 -10 -9 -8 -7 --------- Run | Yrd Mat Min Mat Mat Fac Machines Accessed 12 | . 6 . 3 1 2 Terminals 10 | . 4 . 3 1 2 Fabricators . | . . . . . . Repair Stations . | . . . . . . Recycling Units 2 | . 2 . . . . Scanalyzers . | . . . . . . Garrison Access . | . . . . . . Total Hacks 23 | . 11 . 9 1 2 Successful 19 | . 10 . 7 1 1 Failed 4 | . 1 . 2 . 1 Catastrophic . | . . . . . . Database Lockouts . | . . . . . . Manual . | . . . . . . Terminals 19 | . 7 . 9 1 2 Fabricators . | . . . . . . Repair Stations . | . . . . . . Recycling Units 4 | . 4 . . . . Scanalyzers . | . . . . . . Garrison Access . | . . . . . . Terminal Hacks 15 | . 6 . 7 1 1 Record 9 | . 4 . 4 1 . Open DSF 1 | . . . . . 1 Alert Level 1 | . . . 1 . . Locate Traps 2 | . 1 . 1 . . Patrol Status 1 | . . . 1 . . Investigation Status 1 | . 1 . . . . Fabricator Hacks . | . . . . . . Repair Station Hacks . | . . . . . . Recycling Unit Hacks 4 | . 4 . . . . Recycle Component 1 | . 1 . . . . Report Inventory 2 | . 2 . . . . Retrieve Components 1 | . 1 . . . . Scanalyzer . | . . . . . . Garrison Access Hacks . | . . . . . . Unauthorized Hacks . | . . . . . . Terminals . | . . . . . . Fabricators . | . . . . . . Repair Stations . | . . . . . . Recycling Units . | . . . . . . Scanalyzers . | . . . . . . Garrison Access . | . . . . . . Data Cores Recovered 1 | . . . 1 . . Used 1 | . . . 1 . . Hacking Detections 6 | . 4 . 1 . 1 Full Trace Events . | . . . . . . Feedback Events . | . . . . . . Feedback Blocked . | . . . . . . Robot Schematics Acquired . | . . . . . . Robots Built . | . . . . . . Authchips . | . . . . . . Time . | . . . . . . Total Robot Build Rating . | . . . . . . Part Schematics Acquired . | . . . . . . Parts Built . | . . . . . . Authchips . | . . . . . . Time . | . . . . . . Total Part Build Rating . | . . . . . . Parts Repaired . | . . . . . . Time . | . . . . . . Parts Recycled 1 | . 1 . . . . Recycled Matter . | . . . . . . Retrieved Matter . | . . . . . . Retrieved Components 4 | . 4 . . . . Parts Scanalyzed . | . . . . . . Part Schematics Acquired . | . . . . . . Parts Damaged . | . . . . . . Bothacking | -11 -10 -10 -9 -8 -7 ------------ Run | Yrd Mat Min Mat Mat Fac Used RIF Installer . | . . . . . . Robots Hacked . | . . . . . . Non-combat . | . . . . . . Combat . | . . . . . . Robot Hacks Applied . | . . . . . . Relay Couplers Released . | . . . . . . Fabnet Peak Effective % . | . . . . . . Robots Rewired . | . . . . . . Allies Hacked . | . . . . . . Hacks Repelled . | . . . . . . Allies | -11 -10 -10 -9 -8 -7 -------- Run | Yrd Mat Min Mat Mat Fac Total Allies 3 | . . 3 . . . Largest Group 3 | . . 3 3 . . Highest-Rated Group 40 | . . 40 40 . . Highest-Rated Ally 16 | . . 16 16 . . Total Orders . | . . . . . . Ally Attacks 65 | . . . 65 . . Total Damage 663 | . . . 663 . . Kills 11 | . . . 11 . . Allies Corrupted . | . . . . . . Allies Melted . | . . . . . . Intel | -11 -10 -10 -9 -8 -7 ------- Run | Yrd Mat Min Mat Mat Fac Robot Analysis Total . | . . . . . . Derelict Logs Recovered 2 | . . 2 . . . Drone Launches . | . . . . . . Drone Recoveries . | . . . . . . Exploration | -11 -10 -10 -9 -8 -7 ------------- Run | Yrd Mat Min Mat Mat Fac Turns Passed 3816 | 95 562 920 719 424 1096 Spaces Moved 1785 | 72 348 455 316 183 411 Core 51 | 22 . . 6 . 23 Treads 462 | . . . 9 183 270 Legs 1227 | 50 348 455 301 . 73 Wheels . | . . . . . . Hover 45 | . . . . . 45 Flight . | . . . . . . Fastest Speed 50 | 50 120 190 160 160 50 Average Speed 191 | 98 142 190 201 211 233 Slowest Speed 650 | 120 190 190 650 240 360 Overloaded Moves . | . . . . . . Propulsion Burnouts . | . . . . . . Robots Hopped . | . . . . . . Cave-ins Triggered 1 | . . . . 1 . Exploration Rate (%) 37 | 6 55 91 44 19 11 Regions Visited 5 Branch Regions 1 Pre-discovered Areas 2 | . . 2 . . . Known Exits Taken 2 | . . . 1 1 . Unknown Exits Taken 3 | 1 1 1 . . . Scrap Searched 1 | . . 1 . . . Spaces Dug . | . . . . . . Terrain Destroyed 442 | . . 27 234 125 56 Melee . | . . . . . . Projectile . | . . . . . . AOE 442 | . . 27 234 125 56 Terrain Rammed . | . . . . . . Walls Destroyed . | . . . . . . Machines Disabled . | . . . . . . Actions | -11 -10 -10 -9 -8 -7 --------- Run | Yrd Mat Min Mat Mat Fac Total 2040 | 88 392 486 362 209 503 Wait 34 | . 16 4 . . 14 Move 1780 | 71 347 454 315 182 411 Hop . | . . . . . . Pick Up 40 | 7 8 2 9 8 6 Fast Attach 3 | . 1 . . . 2 Attach 35 | 5 2 . 7 7 14 Detach 5 | . . . . 1 4 Swap 13 | 1 2 3 1 1 5 Drop 8 | . 3 . . . 5 Fire 104 | 4 13 23 30 10 24 Melee . | . . . . . . Ram 7 | . . . . . 7 Kick 11 | . . . . . 11 Crush . | . . . . . . Escape Stasis . | . . . . . . Rewire . | . . . . . . Trap . | . . . . . . Miscellaneous . | . . . . . . Route ------- -11/Scrapyard -10/Materials (discovered 3 exits: *Mat / [*Min x2]) -10/Mines (discovered 2 exits: *Mat x2) -9/Materials (discovered 2 exits: *Mat / [*Min]) -8/Materials -7/Factory History --------- Turn | Location | Event 2 | -11/Scrapyard | Met Revision 17 69 | -11/Scrapyard | Discovered new exit (range 8) 96 | -11/Scrapyard | Entered Materials 316 | -10/Materials | Build established: Mutant 317 | -10/Materials | Discovered new exit (range 4) 380 | -10/Materials | Discovered new exit (range 11) 644 | -10/Materials | Discovered new exit (range 10) 658 | -10/Materials | Entered Mines 921 | -10/Mines | Discovered new exit (range 13) 1387 | -10/Mines | Assisted by bots powering up and referring to "LRC-V3" 1389 | -10/Mines | Learned location of Storage (-8) 1526 | -10/Mines | Learned location of Recycling (-8) 1545 | -10/Mines | Discovered new exit (range 4) 1578 | -10/Mines | Entered Materials 1578 | -9/Materials | Accompanied by 3 allies 1578 | -9/Materials | Evolved 2 slots: Power x1, Utility x1 1966 | -9/Materials | Discovered new exit (range 16) 1978 | -9/Materials | First assault squad dispatched 2263 | -9/Materials | Discovered new exit (range 9) 2296 | -9/Materials | Identified exit to Materials 2297 | -9/Materials | Entered another Materials area 2297 | -8/Materials | Evolved 2 slots: Utility x2 2608 | -8/Materials | Crushed by falling debris 2639 | -8/Materials | Lost 3 parts (1p1n1w) 2714 | -8/Materials | Discovered new exit (range 3) 2719 | -8/Materials | Identified exit to Factory 2721 | -8/Materials | Entered Factory 2721 | -7/Factory | Evolved 2 slots: Power x1, Weapon x1 2926 | -7/Factory | Build established: Scavenger-Mutant 3364 | -7/Factory | Garrison activated, responded to threat 3427 | -7/Factory | Lost 7 parts (2p1u4w) 3540 | -7/Factory | Build established: Mutant 3698 | -7/Factory | Core integrity fell below 50% 3702 | -7/Factory | Core integrity fell below 20% 3728 | -7/Factory | Lost 3 parts (1p2w) 3734 | -7/Factory | Cargo convoy interrupted 3817 | -7/Factory | Destroyed by G-47 Trooper with Particle Gun Last Messages --------------- K-01 Serf collects debris. ALERT: Rogue bot located, Programmers report to Factory Zone 9S. K-01 Serf collects debris. System corrupted: Component data lost. K-01 Serf collects debris. ALERT: Cargo convoy interrupted, initiating access lockdown. TFEW2BD:RD1X,SDAO%CK%UQ9EU System corrupted: Matter fused (-2). System corrupted: Heat flow error (+139). Acquired Propulsion Shielding. Ion Engine destroyed. Kicked P-60 Hacker out of the way. Kicked P-60 Hacker. Kicked P-60 Hacker out of the way. Kicked P-60 Hacker. Kicked P-60 Hacker out of the way. Kicked P-60 Hacker. Kicked P-60 Hacker out of the way. Map ----- +----------------------------------------------------+ | ### "" ##??????????????????????????????? | | ## ! ]! """ ""S ##??????????????????????????????? | | ### ] """ "" ##??????????????????????????????? | | ### """ ##??????????????????????????????? | | #?????! ??????????????????????????????????? | | #????? ###########?????????????????????? | | ##????####+#################?????????????????????? | | ##????## / ##?????????????????????? | | ##????## # """""" ##?????????????????????? | | ########^ # """""" ##?????????????????????? | | ######## + """""" ##?????????????????????? | | # """""" ##?????????????????????? | | # ! ##?????????????????????? | | # """""" ##?????????????????????? | | # """""" ##?????????????????????? | | # """""" ##?????????????????????? | | # """""" ##?????????????????????? | | # ##?????????????????????? | | # # ?????????????????????? | | ##+######################Y# ?????????????????????? | | ############# # ?????????????????????? | | ??????????????????????## # ?????????????????????? | | ??????????????????????## # ?????????????????????? | | ??????????????????????## # ?????????????????????? | | ??????????????????????## # ?????????????????????? | | ??????????????????????##@##?????????????????????? | | ??????????????????????##pg ?????????????????????? | | ??????????????????????## b ???????????????????? | | ??????????????????????## ?????????????????? | | ?????????????????????? g g ?????????????? | | ??????????????????????######## ####?????????????? | | ???????????????????????######## ## ?????????????? | | ??????????????????????????????? ##???????????????? | | ?????????????????????????????????????????????????? | | ?????????????????????????????????????????????????? | | ?????????????????????????????????????????????????? | | ?????????????????????????????????????????????????? | | ?????????????????????????????????????????????????? | | ####+###?????????????????????????????????????????? | | #### ###?????????????????????????????????????????? | | ##?????????????????????????????????????????? | | ??????????????????????????????????????? | | ??????????????????????????????????????? | | ## ??????????????????????????????????????? | | # ? ! ???????????????????????????????????????? | | ??????? ????????????????????????????????????????? | | ?????????????????????????????????????????????????? | | ?????????????????????????????????????????????????? | | ?????????????????????????????????????????????????? | | ?????????????????????????????????????????????????? | +----------------------------------------------------+ Best States ------------- Heat Dissipation 48 Energy Generation 21 Energy Capacity 400 Matter Stores 300 Matter Capacity 300 Sight Range 16 Terrain Scan Density 10 Resistance: KI 20 Resistance: TH 20 Resistance: EX 20 Resistance: EM 20 Resistance: I 20 Resistance: S 20 Resistance: P 20 Propulsion Shielding 33 Evasion (%) 55 Targeting Accuracy 10 Recoil Reduction 2 Offensive Hacking 10 Item Schematics ----------------- None Robot Schematics ------------------ None Fabricated ------------ Nothing Alien Tech Used ----------------- None Achievements -------------- Dynamic Key Loot Pinata Made in Tau Ceti IV More Dakka Please Oops Remodeling Significant Disruption Troublemaker Unlikely Earthworm Challenges ------------ None Game ------ Seed SensorSkeletonSource Manual? 0 Play Time 00:50:32 Cumulative 2.1 hours Start 2024.04.09 @ 13:43:21 End 2024.04.09 @ 18:17:33 Sessions 3 Manual Loads 0 Difficulty Adventurer Special Mode None Game No. 3 Rogue 0 Adventurer 3 Explorer 0 Win Type - Total 0 Types 0/0/0/0/0/0/0/0/0 Lore% 2 Gallery% 4 Achievement% 6 Wizard Run 0 Options --------- Layout 1 ASCII 0 Keyboard 0 Movement Mouse Keybinds 0 Fullscreen 2 Font 24/Smallcaps Map View 50x35 Zoom Use 0% Tactical HUD 0 Map Filters NONE Filters NONE Steam 1 RUN: adee3ba0-2263-4f4f-95cd-7f8da5147577